[Event "55th Iranian-ch Men Final 2022"]
[Site "Iran"]
[Date "2022.06.19"]
[Round "6.7"]
[White "Naderi, Abdollah"]
[Black "Omidi, Arya"]
[Result "0-1"]
[ECO "E66"]
[WhiteElo "2050"]
[BlackElo "2321"]
[Annotator "TA"]
[PlyCount "160"]
[EventDate "2022.06.15"]
[EventType "tourn"]
[EventCountry "IRI"]
[SourceTitle "playchess.com"]
[Source "ChessBase"]
[SourceQuality "1"]
[TimeControl "40/5400+30:1800+30"]

{[%evp 25,160,44,55,0,0,0,2,0,30,28,58,-22,39,39,57,9,22,0,86,36,227,79,83,93,87,38,179,156,185,128,127,120,111,108,122,116,117,129,110,108,108,108,422,419,402,402,345,58,35,0,0,0,0,0,70,0,0,0,0,0,0,0,0,0,-2,-44,-45,-40,-51,-37,0,0,0,0,0,0,0,0,0,0,0,0,0,0,0,0,0,0,0,0,0,0,0,0,0,0,2,2,88,13,81,0,25,0,0,0,0,0,0,0,0,0,0,0,0,0,6,0,0,0,0,0,0,0,-4,0,0,-57,-51,-126,-122,-258,-253,-1814,-1794,-1237,-1220]} 1. Nf3 {[%emt 0:05:24]} Nf6 {[%emt 0:00:09]} 2. d4 {[%emt 0:00:25]} g6 {[%emt 0:01:48]} 3. g3 {[%emt 0:00:38]} Bg7 {[%emt 0:00:05]} 4. Bg2 {[%emt 0:00:11]} O-O {[%emt 0:00:03]} 5. O-O {[%emt 0:00:13]} d6 {[%emt 0:00:38]} 6. c4 {[%emt 0:00:54]} Nc6 {[%emt 0:01:28]} 7. Nc3 {[%emt 0:00:30]} a6 {[%emt 0:01:31]} 8. d5 {[%emt 0:06:13]} Na5 {[%emt 0:00:09]} 9. Nd2 {[%emt 0:00:07]} c5 {[%emt 0:00:05]} 10. Qc2 {[%emt 0:00:58]} Rb8 {[%emt 0:00:16]} 11. b3 {[%emt 0:01:22]} b5 {[%emt 0:00:48]} 12. Bb2 {[%emt 0:00:33]} Bf5 {[%emt 0:12:32]} 13. e4 {[%emt 0:04:58]} Bd7 {[%emt 0:00:39]} 14. h3 {[%emt 0:09:16] E66: King's Indian: Fianchetto: 6...c5 7 0-0 Nc6 8 d5.} (14. Nd1 $14) 14... e5 $11 {[%emt 0:00:59]} 15. Ne2 {[%emt 0:12:05]} Nh5 {[%emt 0:08:56] [#]} 16. Rae1 $146 {[%emt 0:20:22] The position is equal.} ({Predecessor:} 16. Bc3 f5 17. exf5 Bxf5 18. Qd1 Nf6 19. Re1 Bh6 20. f4 exf4 21. Nxf4 Bxf4 22. gxf4 {0-1 (28) Berry,N (2327)-Rapport,R (2547) Rogaska Slatina 2011}) 16... bxc4 {[%emt 0:10:31]} 17. bxc4 {[%emt 0:03:23]} f5 {[%emt 0:00:41]} 18. Kh2 {[%emt 0:12:18] [#]} (18. Bc3 $14) 18... f4 {[%emt 0:04:27]} (18... Ba4 $1 $11 19. Qc3 Bh6) 19. Bc3 $14 {[%emt 0:00:18]} Bh6 {[%emt 0:01:34][%cal Of4f3]} 20. Qd3 {[%emt 0:00:52]} (20. g4 $14 Nf6 21. Rb1) 20... Nb7 {[%emt 0:02:08]} 21. Nf3 {[%emt 0:03:59]} Qe7 {[%emt 0:07:41]} (21... fxg3+ $11 22. fxg3 Na5) 22. Rb1 {[%emt 0:01:25]} ({White should play} 22. g4 $16 Ng7 23. Rb1) 22... Ba4 $2 {[%emt 0:05:59]} (22... fxg3+ $14 23. fxg3 Bc8) 23. Rb6 {[%emt 0:02:42]} (23. g4 $18 {and the rest is easy.}) 23... fxg3+ {[%emt 0:03:56]} 24. fxg3 {[%emt 0:02:10][%cal Bf2g3,Bg3g4,Bg4g5][%mdl 32]} Qc7 {[%emt 0:03:46]} 25. Rfb1 {[%emt 0:00:59]} (25. Rxa6 $16 Ra8 26. Rxa8 Rxa8 27. Bd2 Bxd2 28. Nxd2 (28. Qxd2 Qe7 $16)) 25... Nf6 {[%emt 0:07:07]} (25... Bb5 $1 $14) 26. g4 $18 {[%emt 0:05:46]} (26. Rxa6 Ra8 27. Rxa8 Rxa8 $16) 26... Nd7 {[%emt 0:02:27]} 27. Rxa6 {[%emt 0:05:59]} ({Better is} 27. R6b2 $1 $18) 27... Ra8 $16 {[%emt 0:23:37]} 28. Rxa8 {[%emt 0:00:00]} Rxa8 {[%emt 0:00:30]} 29. g5 $36 {[%emt 0:01:00][%mdl 2048] Black is under strong pressure.} Bg7 {[%emt 0:00:30]} 30. Be1 {[%emt 0:00:00]} Nb6 {[%emt 0:00:00]} 31. h4 Na5 {[%emt 0:01:00]} 32. Bxa5 {[%emt 0:00:00]} Rxa5 {[%emt 0:00:00]} 33. Bh3 {[%emt 0:00:00]} h5 $2 {[%emt 0:00:00][%mdl 8192]} (33... Qd8 $16 {is tougher.} 34. Be6+ Kh8) 34. gxh6 $1 $18 {[%emt 0:02:30]} Bxh6 {[%emt 0:00:00]} 35. Be6+ {[%emt 0:00:00]} Kg7 {[%emt 0:00:00]} 36. Rf1 $2 {[%emt 0:00:00]} (36. h5 $18) 36... Be8 $1 $14 {[%emt 0:00:00]} 37. Ng5 {[%emt 0:00:00]} (37. h5 $5) 37... Rxa2 {[%emt 0:00:00]} 38. Rf2 {[%emt 0:00:27]} (38. Qf3 Qe7 39. Rf2 Nxc4 $17) 38... Qe7 {[%emt 0:00:00]} 39. Qb3 {[%emt 0:00:50][%csl LRa2,LRb6]} Ra6 {[%emt 0:00:00]} (39... Qa7 $11) 40. Rg2 {[%emt 0:00:00]} (40. Ng3 $1 $14) 40... Bxg5 {[%emt 0:00:00]} 41. hxg5 {[%emt 0:03:17]} (41. Rxg5 Nd7 $15) 41... Qf8 $1 {[%emt 0:00:00]} 42. Bc8 {[%emt 0:02:19]} Qh8+ {[%emt 0:02:42]} 43. Kg3 {[%emt 0:14:15]} Bd7 {[%emt 0:01:38]} 44. Bxd7 {[%emt 0:00:13]} Nxd7 {[%emt 0:00:05]} 45. Qb7 {[%emt 0:06:32][%csl LRa6,LRd7]} (45. Rh2 Qa8 46. Kg4 Qc8 $15) 45... Ra3+ {[%emt 0:01:08]} 46. Kf2 {[%emt 0:00:13][%cal Bg3f2,Bf2e1,Be1d2,Bd2d3][%mdl 32]} Qf8+ {[%emt 0:02:34]} 47. Ke1 {[%emt 0:01:18]} Ra1+ {[%emt 0:00:58]} 48. Kd2 {[%emt 0:00:20]} Qd8 {[%emt 0:00:09]} 49. Nc3 {[%emt 0:00:53]} Rf1 {[%emt 0:05:20]} 50. Qa7 {[%emt 0:01:31]} Rf7 {[%emt 0:00:40]} 51. Qa6 {[%emt 0:02:42]} Nb6 {[%emt 0:03:31]} 52. Rg3 {[%emt 0:02:25]} Nc8 {[%emt 0:01:24]} 53. Kd3 {[%emt 0:00:22]} Qh8 {[%emt 0:00:53]} 54. Re3 {[%emt 0:01:27]} Ra7 {[%emt 0:04:36]} 55. Qc6 {[%emt 0:00:12]} Qf8 {[%emt 0:00:20]} 56. Ke2 {[%emt 0:00:33]} Rf7 {[%emt 0:01:23]} (56... Ra1 $2 57. Qd7+ Qe7 58. Qxc8 $18 (58. Qh3 Qxg5 59. Rg3 Qf6 $16)) 57. Kd3 {[%emt 0:00:28]} Ra7 {[%emt 0:01:53]} 58. Ke2 {[%emt 0:00:05]} Qd8 {[%emt 0:02:24]} (58... Ra1 $2 59. Qd7+ Qe7 60. Qxc8 $18 (60. Qh3 Qxg5 61. Rg3 Qd8 $16)) 59. Rf3 {[%emt 0:00:52]} Ne7 {[%emt 0:00:10]} 60. Qb5 {[%emt 0:00:22]} Ng8 {[%emt 0:01:47]} 61. Rg3 {[%emt 0:00:54]} Rf7 {[%emt 0:01:00]} (61... Qf8 $1 $11 {keeps the balance.}) 62. Kd3 {[%emt 0:00:25]} (62. Qb1 $1 $16) 62... Ne7 {[%emt 0:00:22]} (62... Qf8 $11) 63. Qa6 {[%emt 0:00:10]} (63. Qb2 $16) 63... Nc8 {[%emt 0:01:05]} 64. Qa1 {[%emt 0:00:24] Qh1 is the strong threat.} (64. Qa2 $5 {[%cal Ra2h2]}) 64... Qh8 {[%emt 0:01:16] Prevents Qh1.} 65. Qa6 {[%emt 0:00:37]} Qh4 {[%emt 0:01:11]} 66. Re3 {[%emt 0:00:17]} Qg4 {[%emt 0:00:07]} 67. Kd2 {[%emt 0:01:28]} Ra7 {[%emt 0:00:27]} 68. Qc6 {[%emt 0:00:01]} Qg2+ {[%emt 0:00:11]} 69. Kd3 {[%emt 0:00:29]} ({Much weaker is} 69. Ne2 Qxg5 $1 70. Nc3 (70. Qxc8 Ra2+ 71. Kd3 Ra3+ 72. Nc3 Rxc3+ 73. Kxc3 Qxe3+ 74. Kb2 Qe2+ 75. Kb3 Qe1 $17) 70... Qd8 $15) 69... Qg4 {[%emt 0:01:36]} 70. Re2 {[%emt 0:00:43]} Rf7 {[%emt 0:01:11]} (70... Ra3 71. Qc7+ Kg8 72. Qd8+ Kf7 73. Rf2+ (73. Kd2 $2 Qf3 $19) 73... Qf4 74. Rxf4+ $18) 71. Re3 {[%emt 0:00:16]} Rf8 {[%emt 0:00:33]} 72. Qc7+ {[%emt 0:01:06]} Kg8 {[%emt 0:00:03]} 73. Qb7 {[%emt 0:00:11]} Qxg5 {[%emt 0:00:38]} 74. Qd7 {[%emt 0:00:37] Against Qg4} Qf6 {[%emt 0:00:51] White must now prevent ...Qf1+.} 75. Rh3 {[%emt 0:00:44][%csl Gh3][%cal Rd7h7]} Ne7 {[%emt 0:00:44]} 76. Qg4 {[%emt 0:00:23]} (76. Kc2 $11) 76... Kg7 $15 {[%emt 0:00:31]} 77. Qd7 {[%emt 0:00:34] [#]} ({White should try} 77. Qg1 $15) 77... Rf7 $1 $17 {[%emt 0:00:17][%cal Oe7d5] Hoping for ...Nxd5! The board is on fire.} 78. Qg4 {[%emt 0:00:20]} (78. Qe6 $17 {was the only defense.}) 78... Qf1+ $19 {[%emt 0:00:15]} ({Not} 78... Qf2 79. Re3 $17) 79. Kd2 $2 {[%emt 0:00:44]} (79. Kc2) 79... Rf2+ {[%emt 0:00:13]} 80. Ne2 {[%emt 0:00:08] [#]} Rxe2+ $1 {[%emt 0:00:10][%mdl 512] What a bad dream for White.  Weighted Error Value: White=0.31/Black=0.32} 0-1

[Event "55th Iranian-ch Men Final 2022"]
[Site "Iran"]
[Date "2022.06.19"]
[Round "7.1"]
[White "Omidi, Arya"]
[Black "Mosadeghpour, Masoud"]
[Result "0-1"]
[ECO "C45"]
[WhiteElo "2321"]
[BlackElo "2474"]
[Annotator "TA"]
[PlyCount "81"]
[EventDate "2022.06.15"]
[EventType "tourn"]
[EventCountry "IRI"]
[SourceTitle "playchess.com"]
[Source "ChessBase"]
[SourceQuality "1"]
[TimeControl "40/5400+30:1800+30"]

{[%evp 11,81,36,45,49,51,30,39,39,51,50,55,39,29,36,36,18,22,0,0,4,29,21,47,7,0,0,13,14,67,0,0,0,0,0,0,0,3,0,0,0,0,0,53,53,74,35,30,26,22,18,91,100,148,146,239,230,1545,439,697,690,690,690,690,697,690,-8,-8,-29971,-29975,-29971,-29975,-29970]} 1. e4 {[%emt 0:00:03]} e5 {[%emt 0:02:21]} 2. Nf3 {[%emt 0:00:05]} Nc6 {[%emt 0:00:14]} 3. d4 {[%emt 0:01:37]} exd4 {[%emt 0:00:44]} 4. Nxd4 {[%emt 0:00:03]} Bc5 {[%emt 0:01:41]} 5. Nb3 {[%emt 0:01:59]} Bb4+ {[%emt 0:00:27]} 6. c3 {[%emt 0:00:32]} Be7 {[%emt 0:00:02]} 7. f4 {[%emt 0:13:15] C45: Scotch Game.} d6 {[%emt 0:01:01]} 8. Bd3 {[%emt 0:00:25]} Bh4+ {[%emt 0:02:15]} 9. g3 {[%emt 0:00:38] White is slightly better.} Be7 {[%emt 0:00:10]} 10. Be3 {[%emt 0:13:23] [#]} h5 $146 {[%emt 0:09:49]} ({Predecessor:} 10... Nf6 11. h3 Be6 12. N1d2 Qc8 13. g4 Nd7 14. Qe2 g5 15. fxg5 Nde5 16. Nd4 Qd7 {1-0 (56) Novikov,S (2512)-Lukjanenko,A (2388) Sochi 2005}) 11. N1d2 {[%emt 0:20:55]} Bg4 {[%emt 0:02:15]} 12. Be2 {[%emt 0:03:05]} Qd7 {[%emt 0:02:14]} 13. Bxg4 {[%emt 0:01:33]} (13. h3 $5 {[%cal Rh3g4]} Bxe2 14. Qxe2 $14 (14. Kxe2 f5 $11)) 13... Qxg4 {[%emt 0:02:03]} 14. Qxg4 {[%emt 0:01:44]} hxg4 {[%emt 0:00:16]} 15. Kf2 {[%emt 0:01:23]} Nf6 {[%emt 0:10:40]} 16. Kg2 {[%emt 0:00:49]} Rh3 {[%emt 0:02:02]} 17. Rhe1 {[%emt 0:02:36]} O-O-O {[%emt 0:00:17]} 18. Nd4 {[%emt 0:02:55]} Nxd4 {[%emt 0:13:03]} 19. Bxd4 {[%emt 0:04:38]} g5 {[%emt 0:14:41]} ({Black should play} 19... Nd7 $11) 20. Bxf6 {[%emt 0:04:09]} ({But not} 20. fxg5 Nd7 $11) (20. Bxa7 gxf4 21. Bd4 f3+ 22. Kg1 (22. Nxf3 $2 gxf3+ 23. Kxf3 Rxh2 $19) 22... Nd7 $17) (20. e5 $1 $14 Nh7 21. exd6 Bxd6 22. fxg5 (22. Bxa7 $2 gxf4 23. Ne4 f5 $17)) 20... Bxf6 $11 {[%emt 0:00:28]} 21. f5 {[%emt 0:00:09]} Rdh8 {[%emt 0:05:01]} 22. Rh1 {[%emt 0:03:15]} Re8 {[%emt 0:03:42]} 23. Rae1 {[%emt 0:00:19]} b5 {[%emt 0:00:58]} 24. Re2 {[%emt 0:02:12]} a5 {[%emt 0:11:44]} 25. a3 {[%emt 0:00:02]} Kd7 {[%emt 0:01:53]} 26. Rd1 {[%emt 0:02:07]} Rhh8 {[%emt 0:01:48]} (26... a4 $11) 27. Nb3 $1 $14 {[%emt 0:00:21]} Re5 {[%emt 0:10:08] Against Nc5+} 28. Nxa5 {[%emt 0:00:47]} (28. Nc1 $5 {[%cal Rc1d3]}) 28... Rhe8 {[%emt 0:00:01]} 29. Rde1 {[%emt 0:01:38]} d5 {[%emt 0:01:02]} 30. Nb3 {[%emt 0:00:21]} dxe4 {[%emt 0:00:35]} (30... Bd8 $11 {keeps the balance.}) 31. Rxe4 $16 {[%emt 0:00:51]} Rxe4 {[%emt 0:00:17]} ({Better is} 31... Kd6 32. Nd2 Rxe4 33. Nxe4+ Kc6) 32. Rxe4 {[%emt 0:02:13]} Rxe4 {[%emt 0:00:41]} (32... Re7 $16 {is a better defense.} 33. Rxe7+ (33. Rxg4 Re2+ 34. Kh3 Rxb2 $14) 33... Bxe7) 33. Nc5+ $18 {[%emt 0:00:01]} Kd6 $2 {[%emt 0:00:11]} (33... Kc6 34. Nxe4 Be7) 34. Nxe4+ {[%emt 0:00:01]} Ke5 {[%emt 0:00:05]} (34... Ke7 $142 35. Kf2 Be5) 35. Nxf6 {[%emt 0:02:11]} Kxf6 {[%emt 0:00:02][%mdl 4096] Endgame KP-KP} 36. h4 {[%emt 0:00:26] Black must now prevent h5.} gxh3+ {[%emt 0:01:24]} 37. Kxh3 {[%emt 0:00:03]} Kxf5 {[%emt 0:00:11] [#]} 38. b3 $2 {[%emt 0:00:34]} (38. c4 $1 $18 {[%cal Rc4b5]} bxc4 39. a4) 38... c5 $11 {[%emt 0:02:12]} 39. c4 $2 {[%emt 0:00:53][%mdl 8192]} (39. Kg2 $11) 39... bxc4 {[%emt 0:00:11]} 40. bxc4 {[%emt 0:00:00] [#]} Ke5 $1 {[%emt 0:00:00]} 41. Kg4 {[%emt 0:22:15] What a bad dream for White.  Weighted Error Value: White=0.52/Black=0.24 (precise)} 0-1

[Event "55th Iranian-ch Men Final 2022"]
[Site "Iran"]
[Date "2022.06.19"]
[Round "7.2"]
[White "Rastbod, Ali"]
[Black "Naderi, Abdollah"]
[Result "1-0"]
[ECO "A31"]
[WhiteElo "2362"]
[BlackElo "2050"]
[Annotator "TA"]
[PlyCount "99"]
[EventDate "2022.06.15"]
[EventType "tourn"]
[EventCountry "IRI"]
[SourceTitle "playchess.com"]
[Source "ChessBase"]
[SourceQuality "1"]
[TimeControl "40/5400+30:1800+30"]

{[%evp 9,99,52,54,59,64,58,65,52,56,54,67,64,71,68,108,89,82,86,91,93,110,117,118,115,129,88,83,87,145,150,181,154,158,157,187,220,201,201,218,226,220,195,214,191,242,147,158,170,159,167,149,134,134,90,141,150,148,152,141,129,141,139,152,151,145,145,153,149,274,284,286,277,614,615,582,470,466,464,2002,1915,2156,2121,5189,4133,4786,724,29977,29973,4802,1741,29987,29985]} 1. d4 {[%emt 0:00:02]} Nf6 {[%emt 0:00:11]} 2. Nf3 {[%emt 0:00:06]} g6 {[%emt 0:01:49]} 3. c4 {[%emt 0:01:00]} c5 {[%emt 0:01:09]} 4. dxc5 {[%emt 0:00:09]} Qa5+ {[%emt 0:01:59]} 5. Nc3 {[%emt 0:05:28]} Qxc5 {[%emt 0:03:05]} 6. e4 {[%emt 0:04:27] A31: Symmetrical English: 2 Nf3 Nf6 3 d4.} d6 {[%emt 0:07:14] Prevents e5.} 7. Be2 {[%emt 0:04:21]} Bg7 {[%emt 0:06:04]} 8. Be3 {[%emt 0:00:57] White is slightly better.} Qa5 {[%emt 0:01:25]} 9. O-O {[%emt 0:00:13]} O-O {[%emt 0:00:35]} 10. h3 {[%emt 0:08:55]} Nc6 {[%emt 0:02:09]} 11. a3 {[%emt 0:00:10]} Be6 {[%emt 0:07:43]} 12. Ng5 {[%emt 0:11:29]} Bd7 {[%emt 0:10:47]} 13. b4 {[%emt 0:00:56]} Qd8 {[%emt 0:01:37]} (13... Qe5 $2 14. Rc1 h6 15. f4 Qxc3 16. Rxc3 $18) 14. Qd2 {[%emt 0:00:41]} h6 {[%emt 0:04:31]} 15. Nf3 {[%emt 0:01:53]} Kh7 {[%emt 0:01:22]} 16. Rac1 {[%emt 0:00:13]} Be6 {[%emt 0:00:56] [#]} 17. Bd3 $146 {[%emt 0:01:57]} ({Predecessor:} 17. Rfd1 Rc8 18. Qe1 Nd7 19. Nd5 b6 20. Nf4 a5 21. Nxe6 fxe6 22. c5 bxc5 23. bxc5 Bb2 24. Rc2 Bxa3 25. cxd6 exd6 {1-0 (35) Kobo,O (2490)-Ribshtein,N (2291) Ramat Gan 2021}) 17... Nd7 {[%emt 0:08:54]} 18. Nd5 {[%emt 0:07:34]} a5 {[%emt 0:09:22]} ({Better is} 18... Nde5) 19. b5 $16 {[%emt 0:18:11] 0x0.000861499656dp-1022s more active pieces.} Bxd5 {[%emt 0:04:32]} 20. cxd5 {[%emt 0:00:48]} ({Don't take} 20. exd5 $6 Nce5 $16) 20... Nce5 {[%emt 0:01:19]} 21. Nxe5 {[%emt 0:00:16]} Nxe5 {[%emt 0:01:52]} 22. b6 $1 {[%emt 0:00:19]} Nd7 {[%emt 0:07:40]} 23. Rc7 {[%emt 0:01:06]} Nc5 {[%emt 0:00:28]} 24. Bxc5 {[%emt 0:02:01]} dxc5 {[%emt 0:00:01]} 25. Rxb7 {[%emt 0:00:43]} Qd6 {[%emt 0:03:32]} 26. Rb1 {[%emt 0:02:41]} Rac8 {[%emt 0:03:45]} (26... c4 $142) 27. Qe2 {[%emt 0:12:36]} Rb8 {[%emt 0:04:50]} 28. Rxb8 {[%emt 0:03:11]} Rxb8 {[%emt 0:00:02]} 29. b7 {[%emt 0:00:10]} Bd4 {[%emt 0:01:50]} 30. Ba6 {[%emt 0:03:15]} Kg7 {[%emt 0:00:32]} 31. a4 {[%emt 0:01:05]} Qf6 {[%emt 0:00:41]} (31... h5 $142 32. Kh1 Qf6) 32. Rf1 {[%emt 0:00:29]} h5 {[%emt 0:01:12] [#]} 33. Kh1 $1 {[%emt 0:00:14]} Qf4 {[%emt 0:00:54]} 34. g3 {[%emt 0:01:05]} Qd6 {[%emt 0:00:41]} 35. h4 {[%emt 0:03:17]} Qd7 {[%emt 0:00:08] And now ...Qh3+ would win.} 36. Kg2 {[%emt 0:00:48] Inhibits Qh3+.} Qxa4 {[%emt 0:01:04]} 37. Rb1 {[%emt 0:00:03] Against Qb4} Qd7 {[%emt 0:00:28]} 38. Qb5 {[%emt 0:01:19]} Qc7 {[%emt 0:00:58]} (38... Qxb5 $16 {might work better.} 39. Rxb5 a4) 39. f4 $18 {[%emt 0:00:50]} Qd6 {[%emt 0:01:28]} 40. Qc6 {[%emt 0:00:00]} f6 {[%emt 0:00:00]} (40... c4 41. Qxc4 f6) 41. Qxd6 {[%emt 0:17:22]} exd6 {[%emt 0:01:14][%mdl 4096] Endgame KRB-KRB} 42. Rb6 {[%emt 0:00:02]} c4 {[%emt 0:01:03]} 43. Rc6 {[%emt 0:05:13]} Bc5 {[%emt 0:01:51]} (43... c3 $142 44. Rc7+ (44. Rxd6 $2 a4 $19) 44... Kh6) 44. e5 {[%emt 0:00:13]} fxe5 {[%emt 0:04:33]} 45. fxe5 {[%emt 0:00:15][%cal Bf4e5,Be5d6,Bd6d7][%mdl 32]} a4 {[%emt 0:14:00]} 46. exd6 {[%emt 0:00:42]} Bb4 {[%emt 0:04:29]} 47. Bxc4 {[%emt 0:00:50]} (47. d7 $142 Ba5 48. Rc8 Rxb7 49. Bxb7) 47... a3 {[%emt 0:00:32]} 48. d7 {[%emt 0:00:39]} Ba5 {[%emt 0:00:38]} 49. Ra6 {[%emt 0:01:32]} (49. d6 $142 Rxb7 {[#]} 50. Rc7 $1 {[%mdl 512]} Rxc7 51. d8=Q Rxc4 52. Qxa5) 49... Bc7 {[%emt 0:04:11]} 50. d6 {[%emt 0:00:30] Weighted Error Value: White=0.08 (flawless) /Black=0.46} 1-0

[Event "55th Iranian-ch Men Final 2022"]
[Site "Iran"]
[Date "2022.06.19"]
[Round "7.3"]
[White "Tahbaz, Arash"]
[Black "Poormosavi, Seyed Kian"]
[Result "1-0"]
[ECO "B15"]
[WhiteElo "2451"]
[BlackElo "2358"]
[Annotator "TA"]
[PlyCount "73"]
[EventDate "2022.06.15"]
[EventType "tourn"]
[EventCountry "IRI"]
[SourceTitle "playchess.com"]
[Source "ChessBase"]
[SourceQuality "1"]
[TimeControl "40/5400+30:1800+30"]

{[%evp 14,73,24,17,29,23,41,17,21,3,10,22,22,8,28,0,0,3,77,82,81,81,152,100,152,152,155,153,146,146,206,190,180,195,177,186,255,255,328,316,332,331,326,311,456,458,448,448,436,430,420,391,563,547,877,838,1010,911,1275,1211,1133,956]} 1. e4 {[%emt 0:00:19]} c6 {[%emt 0:00:08]} 2. d4 {[%emt 0:00:05]} d5 {[%emt 0:00:07]} 3. Nd2 {[%emt 0:00:04]} dxe4 {[%emt 0:00:09]} 4. Nxe4 {[%emt 0:00:05]} Nf6 {[%emt 0:00:09]} 5. Nxf6+ {[%emt 0:00:06]} exf6 {[%emt 0:00:07]} 6. c3 {[%emt 0:00:04]} Bd6 {[%emt 0:00:09]} 7. Bd3 {[%emt 0:00:05]} O-O {[%emt 0:00:06]} 8. Qc2 {[%emt 0:00:02]} Re8+ {[%emt 0:00:13] B15: Caro-Kann: 3 Nc3: 3...g6 and 3...dxe4 4 Nxe4 Nf6 5 Nxf6+ exf6.} 9. Ne2 {[%emt 0:00:04][%cal Bg1e2,Be2c3,Bc3e4][%mdl 32]} h5 {[%emt 0:00:07]} 10. Be3 {[%emt 0:00:05]} Nd7 {[%emt 0:00:20] The position is equal.} 11. O-O-O {[%emt 0:00:07]} Nf8 {[%emt 0:00:15]} 12. c4 {[%emt 0:00:37]} Be6 {[%emt 0:03:44]} 13. Kb1 {[%emt 0:00:25]} Rc8 {[%emt 0:10:24][%cal Ob7b5]} 14. Nc3 {[%emt 0:04:03]} Bb4 {[%emt 0:00:30]} 15. Ne4 {[%emt 0:07:29]} b5 {[%emt 0:06:52] [#]} (15... Be7 $11 {remains equal.}) 16. c5 $1 $16 {[%emt 0:01:48] Black is on the road to losing.} Qd5 {[%emt 0:18:53] [#]} 17. a3 $146 {[%emt 0:05:03] Active counter play!} ({Predecessor:} 17. b3 a5 18. Nd6 a4 19. bxa4 f5 20. axb5 cxb5 21. Nxe8 Rxe8 22. Qb3 f4 23. Qxd5 Bxd5 {½-½ (63) Willow,J (2386)-Villegas,P (2364) Chess.com INT 2020}) 17... Qa2+ {[%emt 0:06:49]} 18. Kc1 {[%emt 0:00:02]} Bb3 {[%emt 0:01:48]} (18... Ba5 $142) 19. Qb1 {[%emt 0:01:43]} Qxb1+ {[%emt 0:00:31]} 20. Kxb1 {[%emt 0:02:15]} Ba5 {[%emt 0:07:05]} 21. Nd6 $1 {[%emt 0:00:18][%csl LRc8,LRe8]} Bd5 {[%emt 0:03:22]} (21... Bc7 $16) 22. Nxc8 {[%emt 0:04:55]} Rxc8 {[%emt 0:00:03]} 23. b4 {[%emt 0:03:38]} Bc7 {[%emt 0:02:03]} 24. f3 {[%emt 0:00:05]} g6 {[%emt 0:06:38]} (24... h4 $142 25. Be4 Bxe4+ 26. fxe4 Re8) 25. Be4 $18 {[%emt 0:04:02]} Bxe4+ {[%emt 0:03:23]} 26. fxe4 {[%emt 0:00:14]} Re8 {[%emt 0:00:01]} 27. Bf2 {[%emt 0:02:25]} Rxe4 {[%emt 0:00:31]} 28. Bg3 {[%emt 0:00:11]} (28. d5 $6 cxd5 29. Rxd5 Re6 $18) 28... Ne6 {[%emt 0:04:44]} (28... Re7 $142 29. Bxc7 Rxc7) 29. d5 {[%emt 0:00:25]} cxd5 {[%emt 0:12:11]} 30. Rxd5 {[%emt 0:00:02]} Bxg3 {[%emt 0:00:57]} 31. hxg3 {[%emt 0:00:03][%mdl 4096] Endgame KRR-KRN} Re3 {[%emt 0:00:11]} 32. c6 {[%emt 0:04:22]} Rb3+ {[%emt 0:01:22]} (32... Rxa3 {was necessary.} 33. Rxb5 Rb3+ 34. Ka1 Rc3) 33. Kc2 {[%emt 0:02:34] White is clearly winning.} Rxg3 {[%emt 0:02:31]} 34. Re1 {[%emt 0:00:49]} Rxg2+ {[%emt 0:07:48]} 35. Kb1 {[%emt 0:00:15]} h4 {[%emt 0:01:58] [#]} 36. Rxe6 $1 {[%emt 0:00:16][%mdl 512] aiming for Re8+.} fxe6 {[%emt 0:01:11]} (36... h3 37. Re1) 37. Rd8+ {[%emt 0:02:02] Weighted Error Value: White=0.04 (flawless) /Black=0.34} 1-0